[Event "21st Sants Open 2019"]
[Site "Cotxeres de Sants"]
[Date "2019.08.31"]
[Round "9.8"]
[White "Song, Raymond"]
[Black "Panelo, Marcelo"]
[Result "1-0"]
[ECO "B90"]
[WhiteElo "2471"]
[BlackElo "2378"]
[Annotator "ChessBase"]
[PlyCount "95"]
[EventDate "2019.08.22"]
[EventType "swiss"]
[EventCountry "ESP"]
[SourceTitle "playchess.com"]
[Source "ChessBase"]
[SourceQuality "1"]
[TimeControl "40/5400+30:1800+30"]

1. e4 {[%emt 0:00:00]} c5 {[%emt 0:02:50]} 2. Nf3 {[%emt 0:00:00]} d6 {[%emt 0:00:53]} 3. d4 {[%emt 0:00:00]} cxd4 {[%emt 0:00:06]} 4. Nxd4 {[%emt 0:00:00]} Nf6 {[%emt 0:00:06]} 5. Nc3 {[%emt 0:00:00]} a6 {[%emt 0:02:10]} 6. h3 {[%emt 0:00:01]} e6 {[%emt 0:00:29]} 7. g4 {[%emt 0:00:04]} h6 {[%emt 0:00:14]} 8. Bg2 {[%emt 0:00:03]} g5 {[%emt 0:00:54]} 9. Be3 {[%emt 0:00:05]} Nbd7 {[%emt 0:00:06]} 10. Qe2 {[%emt 0:00:04]} Ne5 {[%emt 0:00:11]} 11. Rf1 {[%emt 0:00:08]} Nfd7 {[%emt 0:03:45]} 12. O-O-O {[%emt 0:00:10]} b5 {[%emt 0:01:43]} 13. f4 {[%emt 0:03:02]} gxf4 {[%emt 0:00:11]} 14. Bxf4 {[%emt 0:00:13]} Bb7 {[%emt 0:00:29]} 15. Kb1 {[%emt 0:07:55]} Rc8 {[%emt 0:09:57]} 16. Nd5 {[%emt 0:03:57]} exd5 {[%emt 0:01:18]} 17. exd5 {[%emt 0:00:03]} Qb6 {[%emt 0:10:08]} 18. Be3 {[%emt 0:02:33]} Qc7 {[%emt 0:15:24]} 19. Nf5 {[%emt 0:04:05]} Qa5 {[%emt 0:15:05]} 20. Bd2 {[%emt 0:03:47]} Qb6 {[%emt 0:05:30]} 21. Be3 {[%emt 0:01:31]} Qa5 {[%emt 0:00:21]} 22. Bd2 {[%emt 0:04:02]} Qb6 {[%emt 0:00:21]} 23. Qe1 {[%emt 0:05:23]} Qc5 {[%emt 0:03:17]} 24. Be4 {[%emt 0:00:36]} Qb6 {[%emt 0:09:47]} 25. Rf2 {[%emt 0:04:55]} Rc4 {[%emt 0:00:33]} 26. Bg2 {[%emt 0:02:46]} Qc7 {[%emt 0:04:28]} 27. b3 {[%emt 0:03:05]} Rc5 {[%emt 0:01:40]} 28. Bb4 {[%emt 0:00:19]} Qb6 {[%emt 0:00:08]} 29. Ba5 {[%emt 0:10:39]} Qa7 {[%emt 0:00:08]} 30. Re2 {[%emt 0:00:01]} Rg8 {[%emt 0:00:42]} 31. Qh4 {[%emt 0:00:40]} Qa8 {[%emt 0:04:55]} 32. Nxh6 {[%emt 0:21:06]} Rh8 {[%emt 0:00:23]} 33. g5 {[%emt 0:00:01]} Bxd5 {[%emt 0:03:16]} 34. Rxd5 {[%emt 0:03:30]} Rxd5 {[%emt 0:00:06]} 35. Rd2 {[%emt 0:01:08]} Qa7 {[%emt 0:04:01]} 36. Bxd5 {[%emt 0:01:29]} Qg1+ {[%emt 0:00:05]} 37. Kb2 {[%emt 0:00:02]} Bg7 {[%emt 0:01:12]} 38. Bc3 {[%emt 0:03:48]} Qc5 {[%emt 0:01:28]} 39. Bxf7+ {[%emt 0:10:55]} Kd8 {[%emt 0:00:38]} 40. Qe4 {[%emt 0:00:00]} b4 {[%emt 0:00:00]} 41. Bd4 {[%emt 0:07:15]} Nf3 {[%emt 0:01:21]} 42. Bxg7 {[%emt 0:02:23]} Nxd2 {[%emt 0:00:02]} 43. Qf4 {[%emt 0:01:03]} Ne5 {[%emt 0:00:00]} 44. Qxd2 {[%emt 0:01:13]} Rh7 {[%emt 0:05:49]} 45. Bf6+ {[%emt 0:00:21]} Kc7 {[%emt 0:00:05]} 46. Bg8 {[%emt 0:01:32]} Rd7 {[%emt 0:00:08]} 47. Be6 {[%emt 0:00:43]} Nf3 {[%emt 0:01:07]} 48. Qd5 {[%emt 0:01:12]} 1-0

[Event "21st Sants Open 2019"]
[Site "Cotxeres de Sants"]
[Date "2019.08.31"]
[Round "9.9"]
[White "Brochet, Philippe"]
[Black "Arenas, David"]
[Result "0-1"]
[ECO "B27"]
[WhiteElo "2400"]
[BlackElo "2448"]
[Annotator "NA"]
[PlyCount "54"]
[EventDate "2019.08.22"]
[EventType "swiss"]
[EventCountry "ESP"]
[SourceTitle "playchess.com"]
[Source "ChessBase"]
[SourceQuality "1"]
[TimeControl "40/5400+30:1800+30"]

1. e4 {[%emt 0:00:00]} c5 {[%emt 0:00:00]} 2. Nf3 {[%emt 0:00:00]} g6 {[%emt 0:01:12]} 3. g3 {[%emt 0:09:51]} Nc6 {[%emt 0:02:58]} 4. Bg2 {[%emt 0:02:11]} Nf6 {[%emt 0:03:34]} 5. Nc3 {[%emt 0:01:23]} d6 {[%emt 0:00:04]} 6. O-O {[%emt 0:11:48]} Bg7 {[%emt 0:00:10]} 7. Re1 {[%emt 0:00:05]} Bg4 {[%emt 0:06:48]} 8. h3 {[%emt 0:03:14]} Bxf3 {[%emt 0:00:05]} 9. Qxf3 {[%emt 0:00:40]} Rb8 {[%emt 0:01:13]} 10. Nd5 {[%emt 0:03:24]} Nd7 {[%emt 0:07:22]} 11. d3 {[%emt 0:02:29]} O-O {[%emt 0:00:11]} 12. c3 {[%emt 0:01:10]} b5 {[%emt 0:02:47]} 13. Qe2 {[%emt 0:08:00]} b4 {[%emt 0:05:41]} 14. Bd2 {[%emt 0:02:05]} Nb6 {[%emt 0:07:27]} 15. Nxb6 {[%emt 0:12:50]} Qxb6 {[%emt 0:01:22]} 16. cxb4 {[%emt 0:14:02]} Nd4 {[%emt 0:02:30]} 17. Qd1 {[%emt 0:00:02]} cxb4 {[%emt 0:00:05]} 18. Qa4 {[%emt 0:02:52]} b3 {[%emt 0:08:28]} 19. Be3 {[%emt 0:02:03]} Qb5 {[%emt 0:01:24]} 20. Qxb5 {[%emt 0:02:51]} Rxb5 {[%emt 0:00:02]} 21. Bxd4 {[%emt 0:07:21]} Bxd4 {[%emt 0:00:48]} 22. Re2 {[%emt 0:00:18]} Ra5 {[%emt 0:05:50]} 23. a4 {[%emt 0:00:22]} Rc5 {[%emt 0:00:58]} 24. Bf3 {[%emt 0:03:57]} Rfc8 {[%emt 0:02:29]} 25. Ra3 {[%emt 0:00:50]} Rc1+ {[%emt 0:01:31]} 26. Kg2 {[%emt 0:00:09]} Rb8 {[%emt 0:00:01]} 27. e5 {[%emt 0:00:44]} Bc5 {[%emt 0:00:27]} 0-1

[Event "21st Sants Open 2019"]
[Site "Cotxeres de Sants"]
[Date "2019.08.31"]
[Round "9.10"]
[White "Krishna C R G"]
[Black "Haast, Mark"]
[Result "1/2-1/2"]
[ECO "A40"]
[WhiteElo "2444"]
[BlackElo "2413"]
[Annotator "NA"]
[PlyCount "54"]
[EventDate "2019.08.22"]
[EventType "swiss"]
[EventCountry "ESP"]
[SourceTitle "playchess.com"]
[Source "ChessBase"]
[SourceQuality "1"]
[TimeControl "40/5400+30:1800+30"]

1. d4 {[%emt 0:00:00]} Nf6 {[%emt 0:07:00]} 2. c4 {[%emt 0:00:00]} e6 {[%emt 0:00:16]} 3. g3 {[%emt 0:00:00]} Bb4+ {[%emt 0:00:46]} 4. Bd2 {[%emt 0:00:00]} a5 {[%emt 0:00:16]} 5. Bg2 {[%emt 0:00:08]} d6 {[%emt 0:00:46]} 6. Nc3 {[%emt 0:10:38]} Nbd7 {[%emt 0:03:34]} 7. Qc2 {[%emt 0:04:59]} e5 {[%emt 0:01:36]} 8. a3 {[%emt 0:04:29]} Bxc3 {[%emt 0:01:55]} 9. Bxc3 {[%emt 0:00:03]} exd4 {[%emt 0:12:57]} 10. Bxd4 {[%emt 0:00:09]} a4 {[%emt 0:00:17]} 11. Nf3 {[%emt 0:05:14]} O-O {[%emt 0:01:03]} 12. O-O {[%emt 0:00:08]} Qe7 {[%emt 0:02:31]} 13. Rfe1 {[%emt 0:05:16]} Ne4 {[%emt 0:06:37]} 14. Nd2 {[%emt 0:19:01]} Nxd2 {[%emt 0:00:41]} 15. Qxd2 {[%emt 0:00:03]} Nc5 {[%emt 0:00:32]} 16. Qc3 {[%emt 0:00:56]} f6 {[%emt 0:02:12]} 17. Rad1 {[%emt 0:04:59]} Re8 {[%emt 0:06:57]} 18. e4 {[%emt 0:01:22]} Bg4 {[%emt 0:03:06]} 19. f3 {[%emt 0:00:44]} Bh5 {[%emt 0:00:32]} 20. Bf2 {[%emt 0:10:10]} Ra6 {[%emt 0:23:15]} 21. Re3 {[%emt 0:00:24]} Rb6 {[%emt 0:04:53]} 22. Qc2 {[%emt 0:00:02]} Bf7 {[%emt 0:00:35]} 23. Rc3 {[%emt 0:08:59]} Rb3 {[%emt 0:01:20]} 24. Rxb3 {[%emt 0:15:18]} Nxb3 {[%emt 0:00:47]} 25. Bh3 {[%emt 0:00:03]} Be6 {[%emt 0:01:04]} 26. Bxe6+ {[%emt 0:00:34]} Qxe6 {[%emt 0:00:01]} 27. Kg2 {[%emt 0:01:55]} b6 {[%emt 0:02:57]} 1/2-1/2

[Event "21st Sants Open 2019"]
[Site "Cotxeres de Sants"]
[Date "2019.08.31"]
[Round "9.11"]
[White "Valenzuela Gomez, Fernando"]
[Black "Munoz, Miguel"]
[Result "1/2-1/2"]
[ECO "A56"]
[WhiteElo "2388"]
[BlackElo "2514"]
[Annotator "ChessBase"]
[PlyCount "65"]
[EventDate "2019.08.22"]
[EventType "swiss"]
[EventCountry "ESP"]
[SourceTitle "playchess.com"]
[Source "ChessBase"]
[SourceQuality "1"]
[TimeControl "40/5400+30:1800+30"]

1. d4 {[%emt 0:06:37]} Nf6 {[%emt 0:04:11]} 2. c4 {[%emt 0:01:33]} c5 {[%emt 0:00:27]} 3. d5 {[%emt 0:00:32]} g6 {[%emt 0:00:40]} 4. Nc3 {[%emt 0:00:12]} Bg7 {[%emt 0:00:05]} 5. e4 {[%emt 0:00:14]} d6 {[%emt 0:00:11]} 6. Nge2 {[%emt 0:00:35]} e5 {[%emt 0:01:23]} 7. Ng3 {[%emt 0:01:58]} h5 {[%emt 0:00:49]} 8. Be2 {[%emt 0:03:29]} a6 {[%emt 0:03:59]} 9. a4 {[%emt 0:01:40]} Nbd7 {[%emt 0:02:16]} 10. Bg5 {[%emt 0:00:23]} Bh6 {[%emt 0:00:09]} 11. Bxh6 {[%emt 0:02:06]} Rxh6 {[%emt 0:00:06]} 12. Qd2 {[%emt 0:00:28]} Rh7 {[%emt 0:00:16]} 13. h4 {[%emt 0:03:00]} b6 {[%emt 0:01:30]} 14. Nf1 {[%emt 0:01:05]} Qe7 {[%emt 0:02:39]} 15. Ne3 {[%emt 0:02:53]} Kf8 {[%emt 0:01:45]} 16. f3 {[%emt 0:11:09]} Ne8 {[%emt 0:07:14]} 17. g3 {[%emt 0:01:49]} Ng7 {[%emt 0:03:40]} 18. Bd3 {[%emt 0:00:41]} Kg8 {[%emt 0:02:40]} 19. O-O-O {[%emt 0:05:16]} Nf6 {[%emt 0:01:07]} 20. f4 {[%emt 0:05:19]} Ng4 {[%emt 0:05:03]} 21. f5 {[%emt 0:04:06]} Nxe3 {[%emt 0:00:33]} 22. fxg6 {[%emt 0:02:16]} fxg6 {[%emt 0:01:04]} 23. Qxe3 {[%emt 0:00:08]} Bg4 {[%emt 0:03:34]} 24. Rdf1 {[%emt 0:01:55]} Rf8 {[%emt 0:06:27]} 25. Rxf8+ {[%emt 0:02:14]} Qxf8 {[%emt 0:01:18]} 26. Qg5 {[%emt 0:07:10]} Ne8 {[%emt 0:01:58]} 27. Rf1 {[%emt 0:10:47]} Qh6 {[%emt 0:01:37]} 28. Qxh6 {[%emt 0:03:38]} Rxh6 {[%emt 0:00:08]} 29. a5 {[%emt 0:02:12]} bxa5 {[%emt 0:03:09]} 30. Be2 {[%emt 0:00:42]} Rh7 {[%emt 0:04:10]} 31. Bxg4 {[%emt 0:03:37]} hxg4 {[%emt 0:01:28]} 32. Kc2 {[%emt 0:00:23]} Rb7 {[%emt 0:04:08]} 33. Ra1 {[%emt 0:01:42]} 1/2-1/2

[Event "21st Sants Open 2019"]
[Site "Cotxeres de Sants"]
[Date "2019.08.31"]
[Round "9.12"]
[White "Idani, Pouya"]
[Black "Valdes Romero, Leonardo"]
[Result "1-0"]
[ECO "E63"]
[WhiteElo "2581"]
[BlackElo "2397"]
[Annotator "ChessBase"]
[PlyCount "91"]
[EventDate "2019.08.22"]
[EventType "swiss"]
[EventCountry "ESP"]
[SourceTitle "playchess.com"]
[Source "ChessBase"]
[SourceQuality "1"]
[TimeControl "40/5400+30:1800+30"]

1. d4 {[%emt 0:00:00]} Nf6 {[%emt 0:05:05]} 2. c4 {[%emt 0:00:00]} g6 {[%emt 0:00:10]} 3. g3 {[%emt 0:00:00]} Bg7 {[%emt 0:00:23]} 4. Bg2 {[%emt 0:00:00]} O-O {[%emt 0:00:13]} 5. Nc3 {[%emt 0:00:00]} d6 {[%emt 0:00:06]} 6. Nf3 {[%emt 0:00:01]} Nc6 {[%emt 0:00:42]} 7. O-O {[%emt 0:00:05]} a6 {[%emt 0:00:17]} 8. b3 {[%emt 0:00:07]} Rb8 {[%emt 0:00:21]} 9. d5 {[%emt 0:00:05]} Na5 {[%emt 0:00:11]} 10. Bd2 {[%emt 0:00:06]} c5 {[%emt 0:00:20]} 11. dxc6 {[%emt 0:00:06]} Nxc6 {[%emt 0:00:06]} 12. Rc1 {[%emt 0:00:06]} Bf5 {[%emt 0:00:26]} 13. Be3 {[%emt 0:00:19]} Ng4 {[%emt 0:19:55]} 14. Bf4 {[%emt 0:00:16]} Nge5 {[%emt 0:02:17]} 15. Qd2 {[%emt 0:11:25]} Nxf3+ {[%emt 0:28:47]} 16. Bxf3 {[%emt 0:05:08]} Nd4 {[%emt 0:01:39]} 17. Bg2 {[%emt 0:00:46]} b5 {[%emt 0:00:17]} 18. cxb5 {[%emt 0:11:51]} axb5 {[%emt 0:03:12]} 19. Nd5 {[%emt 0:02:03]} Bd7 {[%emt 0:08:30]} 20. Rfd1 {[%emt 0:12:34]} h5 {[%emt 0:13:25]} 21. Bg5 {[%emt 0:07:59]} Re8 {[%emt 0:01:32]} 22. Be3 {[%emt 0:06:00]} e5 {[%emt 0:08:16]} 23. Bg5 {[%emt 0:01:25]} Nxe2+ {[%emt 0:01:59]} 24. Kh1 {[%emt 0:02:03]} f6 {[%emt 0:00:04]} 25. Bxf6 {[%emt 0:00:04]} Bxf6 {[%emt 0:00:04]} 26. Qxe2 {[%emt 0:00:05]} Bg5 {[%emt 0:01:06]} 27. Rc7 {[%emt 0:01:33]} Rc8 {[%emt 0:00:34]} 28. Qc2 {[%emt 0:11:58]} Bf5 {[%emt 0:00:56]} 29. Qc6 {[%emt 0:00:12]} Rf8 {[%emt 0:01:38]} 30. h4 {[%emt 0:05:25]} Rxc7 {[%emt 0:01:32]} 31. Nxc7 {[%emt 0:01:26]} Be7 {[%emt 0:00:35]} 32. Nxb5 {[%emt 0:00:26]} Rf6 {[%emt 0:00:45]} 33. Nc3 {[%emt 0:03:11]} Be6 {[%emt 0:00:31]} 34. Bd5 {[%emt 0:00:28]} Bxd5+ {[%emt 0:00:30]} 35. Qxd5+ {[%emt 0:00:22]} Kh7 {[%emt 0:00:26]} 36. Ne4 {[%emt 0:00:45]} Rf8 {[%emt 0:00:06]} 37. Qe6 {[%emt 0:03:27]} Kh6 {[%emt 0:00:42]} 38. Kg1 {[%emt 0:02:28]} Qc7 {[%emt 0:00:34]} 39. Kg2 {[%emt 0:02:31]} Qb7 {[%emt 0:00:22]} 40. Qd5 {[%emt 0:00:00]} Qa7 {[%emt 0:00:00]} 41. a4 {[%emt 0:01:30]} Kg7 {[%emt 0:01:24]} 42. Rd3 {[%emt 0:01:50]} Qa6 {[%emt 0:05:07]} 43. a5 {[%emt 0:01:17]} Rc8 {[%emt 0:02:59]} 44. Rc3 {[%emt 0:02:18]} Rxc3 {[%emt 0:00:24]} 45. Nxc3 {[%emt 0:00:02]} Qc8 {[%emt 0:00:05]} 46. Ne4 {[%emt 0:00:08]} 1-0

[Event "21st Sants Open 2019"]
[Site "Cotxeres de Sants"]
[Date "2019.08.31"]
[Round "9.13"]
[White "Morales, Jhon Alexander"]
[Black "Antova, Gabriela"]
[Result "1/2-1/2"]
[ECO "A06"]
[WhiteElo "2405"]
[BlackElo "2270"]
[Annotator "NA"]
[PlyCount "42"]
[EventDate "2019.08.22"]
[EventType "swiss"]
[EventCountry "ESP"]
[SourceTitle "playchess.com"]
[Source "ChessBase"]
[SourceQuality "1"]
[TimeControl "40/5400+30:1800+30"]

1. g3 {[%emt 0:08:09]} d5 {[%emt 0:00:00]} 2. Nf3 {[%emt 0:03:23]} Nf6 {[%emt 0:00:08]} 3. Bg2 {[%emt 0:00:03]} e6 {[%emt 0:00:21]} 4. O-O {[%emt 0:01:23]} Be7 {[%emt 0:00:39]} 5. c4 {[%emt 0:04:20]} O-O {[%emt 0:00:39]} 6. b3 {[%emt 0:00:22]} d4 {[%emt 0:04:37]} 7. Bb2 {[%emt 0:07:29]} c5 {[%emt 0:00:34]} 8. b4 {[%emt 0:07:04]} a5 {[%emt 0:13:44]} 9. bxc5 {[%emt 0:03:05]} Nc6 {[%emt 0:02:04]} 10. d3 {[%emt 0:00:30]} e5 {[%emt 0:02:48]} 11. Na3 {[%emt 0:11:48]} Bxc5 {[%emt 0:09:06]} 12. Nb5 {[%emt 0:14:47]} h6 {[%emt 0:06:46]} 13. Nd2 {[%emt 0:02:31]} Be6 {[%emt 0:10:09]} 14. Ba3 {[%emt 0:00:28]} Bxa3 {[%emt 0:03:41]} 15. Nxa3 {[%emt 0:00:23]} Nd7 {[%emt 0:00:48]} 16. Rb1 {[%emt 0:00:55]} Rb8 {[%emt 0:04:13]} 17. Nc2 {[%emt 0:00:50]} Nc5 {[%emt 0:02:24]} 18. Ne4 {[%emt 0:00:24]} Na6 {[%emt 0:04:55]} 19. Na3 {[%emt 0:06:23]} f5 {[%emt 0:02:32]} 20. Nd2 {[%emt 0:02:06]} Qe7 {[%emt 0:02:05]} 21. Nb5 {[%emt 0:01:12]} Nc5 {[%emt 0:00:24]} 1/2-1/2

[Event "21st Sants Open 2019"]
[Site "Cotxeres de Sants"]
[Date "2019.08.31"]
[Round "9.15"]
[White "Planella Sanchez, Jordi"]
[Black "Romero Moreno, Felix"]
[Result "0-1"]
[ECO "B30"]
[WhiteElo "1919"]
[BlackElo "1914"]
[Annotator "NA RC"]
[PlyCount "126"]
[EventDate "2019.08.22"]
[EventType "swiss"]
[EventCountry "ESP"]
[SourceTitle "playchess.com"]
[Source "ChessBase"]
[SourceQuality "1"]
[TimeControl "40/5400+30:1800+30"]

1. e4 {[%emt 0:07:50]} c5 {[%emt 0:00:00]} 2. Nf3 {[%emt 0:01:34]} Nc6 {[%emt 0:00:00]} 3. g3 {[%emt 0:03:04]} e6 {[%emt 0:01:53]} 4. Qe2 {[%emt 0:03:36]} Nge7 {[%emt 0:06:05]} 5. Bg2 {[%emt 0:01:29]} d5 {[%emt 0:03:23]} 6. d3 {[%emt 0:01:47]} b6 {[%emt 0:04:01]} 7. O-O {[%emt 0:00:33]} Bb7 {[%emt 0:01:19]} 8. c3 {[%emt 0:04:18]} h6 {[%emt 0:10:50]} 9. Na3 {[%emt 0:03:17]} Qd7 {[%emt 0:07:16]} 10. Nc2 {[%emt 0:05:38]} g6 {[%emt 0:04:07]} 11. Bf4 {[%emt 0:15:02]} Bg7 {[%emt 0:02:58]} 12. h4 {[%emt 0:09:05]} O-O {[%emt 0:09:55]} 13. e5 {[%emt 0:01:45]} d4 {[%emt 0:11:47]} 14. c4 {[%emt 0:00:43]} Kh7 {[%emt 0:06:53]} 15. Nh2 {[%emt 0:00:51]} f6 {[%emt 0:06:39]} 16. exf6 {[%emt 0:00:44]} Bxf6 {[%emt 0:02:54]} 17. Rae1 {[%emt 0:11:09]} e5 {[%emt 0:01:28]} 18. Bd2 {[%emt 0:00:47]} Rae8 {[%emt 0:02:03]} 19. h5 {[%emt 0:03:18]} g5 {[%emt 0:01:58]} 20. Be4+ {[%emt 0:01:06]} Kg7 {[%emt 0:00:15]} 21. a3 {[%emt 0:01:30]} Nd8 {[%emt 0:01:42]} 22. b4 {[%emt 0:01:31]} Bxe4 {[%emt 0:00:47]} 23. Qxe4 {[%emt 0:00:09]} Qf5 {[%emt 0:00:37]} 24. Qe2 {[%emt 0:02:34]} Nb7 {[%emt 0:01:35]} 25. Rb1 {[%emt 0:01:09]} Nc8 {[%emt 0:00:58]} 26. g4 {[%emt 0:00:53]} Qh7 {[%emt 0:00:09]} 27. f3 {[%emt 0:00:27]} Ncd6 {[%emt 0:00:15]} 28. Na1 {[%emt 0:02:29]} Bd8 {[%emt 0:03:49]} 29. Nb3 {[%emt 0:00:28]} Bc7 {[%emt 0:00:24]} 30. Be1 {[%emt 0:02:25]} Nxc4 {[%emt 0:01:03]} 31. bxc5 {[%emt 0:00:53]} bxc5 {[%emt 0:00:19]} 32. Bf2 {[%emt 0:03:55]} Nxa3 {[%emt 0:01:11]} 33. Ra1 {[%emt 0:00:21]} Nb5 {[%emt 0:00:02]} 34. Ra6 {[%emt 0:01:09]} Nc3 {[%emt 0:02:32]} 35. Qd2 {[%emt 0:00:37]} Bb6 {[%emt 0:00:45]} 36. Re1 {[%emt 0:02:00]} Nd5 {[%emt 0:00:30]} 37. Nc1 {[%emt 0:02:04]} Nf4 {[%emt 0:00:19]} 38. Bg3 {[%emt 0:00:21]} Nd6 {[%emt 0:01:04]} 39. Rd1 {[%emt 0:04:35]} Kh8 {[%emt 0:00:22]} 40. Kf2 {[%emt 0:00:00]} Qf7 {[%emt 0:00:00]} 41. Qc2 {[%emt 0:03:47]} c4 {[%emt 0:04:41]} 42. Bxf4 {[%emt 0:01:56]} Qxf4 {[%emt 0:01:19]} 43. Kg2 {[%emt 0:00:27]} Qf7 {[%emt 0:03:26]} 44. Ne2 {[%emt 0:03:58]} cxd3 {[%emt 0:02:54]} 45. Qxd3 {[%emt 0:01:21]} Nc4 {[%emt 0:05:09]} 46. Rc1 {[%emt 0:03:55]} Ne3+ {[%emt 0:00:32]} 47. Kh3 {[%emt 0:01:08]} e4 {[%emt 0:05:00]} 48. Qb1 {[%emt 0:03:36]} Re6 {[%emt 0:05:12]} 49. Qb2 {[%emt 0:02:29]} Qf6 {[%emt 0:03:42]} 50. Ng3 {[%emt 0:05:00]} d3 {[%emt 0:02:20]} 51. Qd2 {[%emt 0:02:16]} exf3 {[%emt 0:00:58]} 52. Qxd3 {[%emt 0:01:57]} Rd8 {[%emt 0:00:24]} 53. Qb5 {[%emt 0:03:29]} f2 {[%emt 0:02:16]} 54. Nhf1 {[%emt 0:01:45]} Nxg4 {[%emt 0:01:04]} 55. Rc4 {[%emt 0:02:43]} Ne5 {[%emt 0:00:20]} 56. Rc2 {[%emt 0:00:36]} g4+ {[%emt 0:00:18]} 57. Kg2 {[%emt 0:00:19]} Qf3+ {[%emt 0:00:29]} 58. Kh2 {[%emt 0:00:10]} Qf4 {[%emt 0:00:58]} 59. Qb2 {[%emt 0:00:26]} Bd4 {[%emt 0:01:44]} 60. Qb7 {[%emt 0:00:44]} Rxa6 {[%emt 0:01:01]} 61. Qxa6 Nf3+ {[%emt 0:00:15]} 62. Kh1 {[%emt 0:01:14]} Qg5 {[%emt 0:00:40]} 63. Qc6 {[%emt 0:00:36]} Qh4+ {[%emt 0:00:11]} 0-1

[Event "21st Sants Open 2019"]
[Site "Cotxeres de Sants"]
[Date "2019.08.31"]
[Round "9.16"]
[White "Carmona Huertas, Juan Antonio"]
[Black "Garcia Ruiz, Adrian"]
[Result "1-0"]
[ECO "E06"]
[WhiteElo "1930"]
[BlackElo "1933"]
[Annotator "NA"]
[PlyCount "52"]
[EventDate "2019.08.22"]
[EventType "swiss"]
[EventCountry "ESP"]
[SourceTitle "playchess.com"]
[Source "ChessBase"]
[SourceQuality "1"]
[TimeControl "40/5400+30:1800+30"]

1. d4 {[%emt 0:00:00]} Nf6 {[%emt 0:15:16]} 2. c4 {[%emt 0:00:00]} e6 {[%emt 0:00:28]} 3. Nf3 {[%emt 0:00:00]} d5 {[%emt 0:00:01]} 4. g3 {[%emt 0:00:00]} Be7 {[%emt 0:00:02]} 5. Bg2 {[%emt 0:00:00]} O-O {[%emt 0:00:02]} 6. O-O {[%emt 0:00:33]} dxc4 {[%emt 0:00:02]} 7. Qc2 {[%emt 0:00:32]} a6 {[%emt 0:00:02]} 8. a4 {[%emt 0:03:40]} Bd7 {[%emt 0:00:02]} 9. Qxc4 {[%emt 0:00:55]} Bc6 {[%emt 0:00:02]} 10. Nc3 {[%emt 0:00:39]} a5 {[%emt 0:00:32]} 11. Rd1 {[%emt 0:10:41]} Na6 {[%emt 0:00:18]} 12. Bf4 {[%emt 0:06:41]} Nb4 {[%emt 0:00:06]} 13. Nb5 {[%emt 0:03:14]} Nbd5 {[%emt 0:00:47]} 14. Ne5 {[%emt 0:08:54]} Bxb5 {[%emt 0:00:12]} 15. axb5 {[%emt 0:00:47]} Nxf4 {[%emt 0:00:21]} 16. gxf4 {[%emt 0:00:10]} Nd5 {[%emt 0:00:39]} 17. e3 {[%emt 0:02:45]} Qd6 {[%emt 0:03:59]} 18. Rdc1 {[%emt 0:05:29]} Rfc8 {[%emt 0:01:05]} 19. f5 {[%emt 0:05:25]} Bf6 {[%emt 0:00:20]} 20. Nxf7 {[%emt 0:02:34]} Kxf7 {[%emt 0:00:49]} 21. fxe6+ {[%emt 0:00:08]} Kxe6 {[%emt 0:01:39]} 22. e4 {[%emt 0:02:18]} c6 {[%emt 0:08:56]} 23. bxc6 {[%emt 0:13:42]} bxc6 {[%emt 0:00:24]} 24. Bh3+ {[%emt 0:09:37]} Ke7 {[%emt 0:00:16]} 25. Bxc8 {[%emt 0:00:19]} Nb6 {[%emt 0:00:37]} 26. e5 Qd8 1-0

[Event "21st Sants Open 2019"]
[Site "Cotxeres de Sants"]
[Date "2019.08.31"]
[Round "9.17"]
[White "Morais Carreras, Javier"]
[Black "Romeu Perulles, Jaume"]
[Result "1-0"]
[ECO "C42"]
[WhiteElo "1939"]
[BlackElo "1813"]
[Annotator "NA"]
[PlyCount "77"]
[EventDate "2019.08.22"]
[EventType "swiss"]
[EventCountry "ESP"]
[SourceTitle "playchess.com"]
[Source "ChessBase"]
[SourceQuality "1"]
[TimeControl "40/5400+30:1800+30"]

1. e4 {[%emt 0:00:00]} e5 {[%emt 0:00:00]} 2. Nf3 {[%emt 0:00:00]} Nf6 {[%emt 0:00:00]} 3. Nxe5 {[%emt 0:00:00]} d6 {[%emt 0:00:00]} 4. Nf3 {[%emt 0:00:06]} Nxe4 {[%emt 0:00:08]} 5. Nc3 {[%emt 0:00:08]} Nxc3 {[%emt 0:00:07]} 6. dxc3 {[%emt 0:00:06]} Be7 {[%emt 0:00:09]} 7. Be3 {[%emt 0:00:06]} O-O {[%emt 0:00:27]} 8. Qd2 {[%emt 0:00:03]} Nd7 {[%emt 0:02:00]} 9. O-O-O {[%emt 0:01:21]} Ne5 {[%emt 0:02:51]} 10. Kb1 {[%emt 0:00:23]} Be6 {[%emt 0:01:36]} 11. Nd4 {[%emt 0:00:36]} a6 {[%emt 0:07:06]} 12. Nxe6 {[%emt 0:05:34]} fxe6 {[%emt 0:00:33]} 13. Be2 {[%emt 0:00:34]} Nc6 {[%emt 0:12:02]} 14. Bd3 {[%emt 0:04:55]} Ne5 {[%emt 0:02:31]} 15. Be2 {[%emt 0:00:30]} Nc6 {[%emt 0:00:20]} 16. f4 {[%emt 0:00:22]} e5 {[%emt 0:02:09]} 17. g3 {[%emt 0:00:55]} Kh8 {[%emt 0:06:31]} 18. Bd3 {[%emt 0:00:46]} Qe8 {[%emt 0:02:00]} 19. Qg2 {[%emt 0:00:57]} exf4 {[%emt 0:03:29]} 20. Qh3 {[%emt 0:01:43]} g6 {[%emt 0:01:19]} 21. gxf4 {[%emt 0:02:45]} Qc8 {[%emt 0:05:46]} 22. Qh6 {[%emt 0:07:52]} Rf6 {[%emt 0:09:46]} 23. Rhg1 {[%emt 0:03:57]} Qf8 {[%emt 0:09:18]} 24. Qh3 {[%emt 0:01:09]} Qc8 {[%emt 0:06:21]} 25. Qg2 {[%emt 0:03:43]} Qg8 {[%emt 0:05:37]} 26. Be4 {[%emt 0:01:58]} Re8 {[%emt 0:05:21]} 27. Bd5 {[%emt 0:00:47]} Qf8 {[%emt 0:01:22]} 28. Bxc6 {[%emt 0:00:22]} bxc6 {[%emt 0:00:11]} 29. Bd4 {[%emt 0:00:10]} Kg8 {[%emt 0:00:31]} 30. Bxf6 {[%emt 0:00:31]} Bxf6 {[%emt 0:02:46]} 31. f5 {[%emt 0:00:47]} g5 {[%emt 0:02:04]} 32. h4 {[%emt 0:00:21]} h6 {[%emt 0:00:15]} 33. hxg5 {[%emt 0:00:08]} hxg5 {[%emt 0:00:56]} 34. Qxc6 {[%emt 0:00:23]} Qe7 {[%emt 0:01:12]} 35. Qg2 {[%emt 0:00:55]} Rb8 {[%emt 0:00:47]} 36. Qd5+ {[%emt 0:00:45]} Kg7 {[%emt 0:00:36]} 37. Rde1 {[%emt 0:00:46]} Qd7 {[%emt 0:00:40]} 38. Re6 {[%emt 0:02:22]} Rb5 {[%emt 0:00:44]} 39. Rxg5+ {[%emt 0:03:48]} 1-0